[Event "2017 South African Open Ch"]
[Site "Durban"]
[Date "2017.07.21"]
[Round "10"]
[White "Mwale Joseph"]
[Black "Jere, Daniel"]
[Result "0-1"]
[ECO "A56"]
[WhiteElo "2159"]
[BlackElo "2380"]
[Annotator "NA"]
[PlyCount "48"]
[EventDate "2017.??.??"]
[EventCountry "RSA"]
[SourceTitle "playchess.com"]
[Source "ChessBase"]
[SourceQuality "1"]
[TimeControl "5400+30"]

1. d4 {[%emt 0:03:43]} Nf6 {[%emt 0:00:53]} 2. c4 {[%emt 0:00:09]} c5 {[%emt 0:00:54]} 3. dxc5 {[%emt 0:02:12]} Na6 {[%emt 0:00:10]} 4. Nc3 {[%emt 0:00:09]} Nxc5 {[%emt 0:00:06]} 5. g3 {[%emt 0:00:14]} g6 {[%emt 0:00:54]} 6. Bg2 {[%emt 0:00:04]} Bg7 {[%emt 0:00:06]} 7. Nf3 {[%emt 0:00:04]} O-O {[%emt 0:00:33]} 8. Be3 {[%emt 0:03:45]} d6 {[%emt 0:09:10]} 9. Bxc5 {[%emt 0:02:19]} dxc5 {[%emt 0:00:09]} 10. Qxd8 {[%emt 0:00:03]} Rxd8 {[%emt 0:00:13]} 11. O-O {[%emt 0:00:10]} Bf5 {[%emt 0:13:26]} 12. b3 {[%emt 0:01:51]} Rac8 {[%emt 0:14:15]} 13. Ne5 {[%emt 0:01:30]} Nd7 {[%emt 0:06:50]} 14. Nxd7 {[%emt 0:03:11]} Bxc3 {[%emt 0:00:38]} 15. Rac1 {[%emt 0:00:02]} Bb2 {[%emt 0:01:07]} 16. Rb1 {[%emt 0:00:36]} Bxb1 {[%emt 0:00:42]} 17. Rxb1 {[%emt 0:00:05]} Rxd7 {[%emt 0:00:36]} 18. Rxb2 {[%emt 0:00:05]} Rd1+ {[%emt 0:00:03]} 19. Bf1 {[%emt 0:00:12]} Rcd8 {[%emt 0:00:31]} 20. b4 {[%emt 0:00:26]} Rc1 {[%emt 0:01:01]} 21. Kg2 {[%emt 0:00:07]} Rdd1 {[%emt 0:00:15]} 22. bxc5 Rxf1 23. Rxb7 {[%emt 0:01:16]} Rg1+ {[%emt 0:00:41]} 24. Kh3 {[%emt 0:00:04]} Rxc4 {[%emt 0:00:27]} 0-1

[Event "2017 South African Open Ch"]
[Site "Durban"]
[Date "2017.07.21"]
[Round "10"]
[White "Mnguni, Jacob Dumisani"]
[Black "Makoto, Rodwell"]
[Result "0-1"]
[ECO "A36"]
[WhiteElo "2147"]
[BlackElo "2372"]
[Annotator "NA"]
[PlyCount "56"]
[EventDate "2017.??.??"]
[EventCountry "RSA"]
[SourceTitle "playchess.com"]
[Source "ChessBase"]
[SourceQuality "1"]
[TimeControl "5400+30"]

1. c4 {[%emt 0:00:00]} c5 {[%emt 0:00:19]} 2. Nc3 {[%emt 0:00:37]} Nc6 {[%emt 0:00:54]} 3. g3 {[%emt 0:00:07]} g6 {[%emt 0:00:16]} 4. Bg2 {[%emt 0:00:03]} Bg7 {[%emt 0:00:04]} 5. a3 {[%emt 0:00:04]} e6 {[%emt 0:00:39]} 6. b4 {[%emt 0:00:58]} d6 {[%emt 0:00:29]} 7. Rb1 {[%emt 0:07:18]} Nge7 {[%emt 0:00:21]} 8. Nf3 {[%emt 0:02:33]} O-O {[%emt 0:00:43]} 9. O-O {[%emt 0:00:04]} Rb8 {[%emt 0:09:07]} 10. e3 {[%emt 0:11:47]} e5 {[%emt 0:11:43]} 11. d3 {[%emt 0:03:08]} f5 {[%emt 0:02:46]} 12. Qc2 {[%emt 0:01:58]} Qd7 {[%emt 0:04:16]} 13. Nd5 {[%emt 0:05:25]} h6 {[%emt 0:02:51]} 14. Nh4 {[%emt 0:06:29]} g5 {[%emt 0:07:50]} 15. b5 {[%emt 0:01:15]} gxh4 {[%emt 0:00:07]} 16. bxc6 {[%emt 0:00:48]} Nxc6 {[%emt 0:00:05]} 17. gxh4 {[%emt 0:16:00]} Qd8 {[%emt 0:00:52]} 18. h5 {[%emt 0:01:56]} f4 {[%emt 0:06:54]} 19. exf4 {[%emt 0:15:58]} Nd4 {[%emt 0:00:15]} 20. Qd1 {[%emt 0:00:07]} Qh4 {[%emt 0:00:15]} 21. Be3 {[%emt 0:01:55]} exf4 {[%emt 0:01:51]} 22. Bxd4 {[%emt 0:01:08]} Bxd4 {[%emt 0:00:14]} 23. Qf3 {[%emt 0:02:51]} Bg4 {[%emt 0:05:12]} 24. Ne7+ {[%emt 0:00:55]} Kg7 {[%emt 0:02:10]} 25. Qe4 {[%emt 0:00:35]} Qxh5 {[%emt 0:00:32]} 26. h3 {[%emt 0:00:43]} Bxh3 {[%emt 0:01:53]} 27. Rxb7 {[%emt 0:08:29]} Rxb7 {[%emt 0:00:39]} 28. Qxb7 {[%emt 0:00:02]} Rf7 {[%emt 0:00:39]} 0-1

[Event "2017 South African Open Ch"]
[Site "Durban"]
[Date "2017.07.21"]
[Round "10"]
[White "De Abreu, Roberto N"]
[Black "Gluckman, Paul"]
[Result "1-0"]
[ECO "A16"]
[WhiteElo "2145"]
[BlackElo "1981"]
[Annotator "NA"]
[PlyCount "85"]
[EventDate "2017.??.??"]
[EventCountry "RSA"]
[SourceTitle "playchess.com"]
[Source "ChessBase"]
[SourceQuality "1"]
[TimeControl "5400+30"]

1. c4 {[%emt 0:00:00]} Nf6 {[%emt 0:00:26]} 2. Nc3 {[%emt 0:00:00]} g6 {[%emt 0:00:24]} 3. e4 {[%emt 0:00:00]} e5 {[%emt 0:01:49]} 4. g3 {[%emt 0:00:01]} Bg7 {[%emt 0:00:23]} 5. Bg2 {[%emt 0:00:01]} O-O {[%emt 0:00:16]} 6. Nge2 {[%emt 0:00:02]} c5 {[%emt 0:01:25]} 7. d3 {[%emt 0:10:24]} d6 {[%emt 0:02:12]} 8. Bg5 {[%emt 0:00:38]} h6 {[%emt 0:00:43]} 9. Bxf6 {[%emt 0:06:25]} Bxf6 {[%emt 0:01:12]} 10. h4 {[%emt 0:00:02]} Nc6 {[%emt 0:06:37]} 11. Qd2 {[%emt 0:09:48]} Bg7 {[%emt 0:02:46]} 12. h5 {[%emt 0:00:41]} g5 {[%emt 0:00:33]} 13. Nd5 {[%emt 0:10:42]} f5 {[%emt 0:03:07]} 14. exf5 {[%emt 0:01:27]} Bxf5 {[%emt 0:00:18]} 15. Ne3 {[%emt 0:00:02]} Bh7 {[%emt 0:02:20]} 16. g4 {[%emt 0:16:00]} Qf6 {[%emt 0:03:25]} 17. Ng3 {[%emt 0:09:22]} Nb4 {[%emt 0:16:04]} 18. Be4 {[%emt 0:02:26]} Nxd3+ {[%emt 0:08:00]} 19. Qxd3 {[%emt 0:02:30]} Qxf2+ {[%emt 0:01:05]} 20. Kd1 {[%emt 0:00:01]} Bxe4 {[%emt 0:01:38]} 21. Nxe4 {[%emt 0:01:04]} Qxb2 {[%emt 0:00:29]} 22. Rb1 {[%emt 0:03:19]} Qxa2 {[%emt 0:00:08]} 23. Nf5 {[%emt 0:03:44]} Rf7 {[%emt 0:03:59]} 24. Rf1 {[%emt 0:06:54]} Rd8 {[%emt 0:01:04]} 25. Rf2 {[%emt 0:03:49]} Qa4+ {[%emt 0:00:40]} 26. Rc2 {[%emt 0:00:09]} b5 {[%emt 0:06:47]} 27. Rxb5 {[%emt 0:05:15]} Qa1+ {[%emt 0:02:55]} 28. Rc1 {[%emt 0:00:01]} Qa2 {[%emt 0:00:11]} 29. Qc2 {[%emt 0:00:16]} Qa6 {[%emt 0:00:18]} 30. Ke1 {[%emt 0:02:43]} d5 {[%emt 0:00:39]} 31. Rd1 {[%emt 0:01:20]} Bf8 {[%emt 0:01:13]} 32. Nxc5 {[%emt 0:00:50]} Qc6 {[%emt 0:00:57]} 33. Ne4 {[%emt 0:01:06]} d4 {[%emt 0:01:04]} 34. Qd3 {[%emt 0:00:27]} a6 {[%emt 0:00:31]} 35. Rxe5 {[%emt 0:01:16]} Qc7 {[%emt 0:00:36]} 36. Re6 {[%emt 0:01:21]} Qa5+ {[%emt 0:00:41]} 37. Ke2 {[%emt 0:00:38]} Qa2+ {[%emt 0:00:39]} 38. Rd2 {[%emt 0:00:20]} Qa1 {[%emt 0:00:10]} 39. Rg6+ {[%emt 0:01:12]} Kh8 {[%emt 0:00:39]} 40. Nf6 {[%emt 0:00:55]} Rxf6 {[%emt 0:00:27]} 41. Rxf6 {[%emt 0:00:02]} Re8+ {[%emt 0:00:07]} 42. Kf2 {[%emt 0:00:09]} Qh1 {[%emt 0:01:56]} 43. Rxf8+ {[%emt 0:00:09]} 1-0

[Event "2017 South African Open Ch"]
[Site "Durban"]
[Date "2017.07.21"]
[Round "10"]
[White "Skosana, Stephen K"]
[Black "Botao Milton"]
[Result "1/2-1/2"]
[ECO "A05"]
[WhiteElo "2027"]
[BlackElo "1963"]
[Annotator "NA RC"]
[PlyCount "133"]
[EventDate "2017.??.??"]
[EventCountry "RSA"]
[SourceTitle "playchess.com"]
[Source "ChessBase"]
[SourceQuality "1"]
[TimeControl "5400+30"]

1. Nf3 {[%emt 0:00:00]} Nf6 {[%emt 0:00:21]} 2. b3 {[%emt 0:00:00]} d5 {[%emt 0:04:17]} 3. Bb2 {[%emt 0:00:00]} Bg4 {[%emt 0:02:17]} 4. e3 {[%emt 0:00:06]} Nbd7 {[%emt 0:01:04]} 5. Be2 {[%emt 0:00:12]} e6 {[%emt 0:00:26]} 6. O-O {[%emt 0:00:37]} Bd6 {[%emt 0:00:13]} 7. d3 {[%emt 0:00:47]} O-O {[%emt 0:00:42]} 8. Nbd2 {[%emt 0:00:07]} e5 {[%emt 0:02:17]} 9. c4 {[%emt 0:06:49] A06: Réti Opening:1 Nf3 d5} c6 {[%emt 0:01:21]} 10. h3 {[%emt 0:00:14]} Bh5 {[%emt 0:02:26]} 11. g4 $146 {[%emt 0:01:34]} ({Predecessor:} 11. cxd5 cxd5 12. e4 Re8 13. Re1 Bg6 14. Nh4 Nc5 15. Nxg6 hxg6 16. exd5 Nxd5 {0-1 (70) Golod,V (2561)-Sasikiran,K (2703) New Delhi 2012}) 11... Bg6 {[%emt 0:00:55]} 12. Nh4 {[%emt 0:00:06]} Qe7 {[%emt 0:06:06]} 13. Nxg6 {[%emt 0:01:36]} fxg6 {[%emt 0:05:31]} 14. cxd5 {[%emt 0:02:24]} cxd5 {[%emt 0:00:27]} 15. Bf3 {[%emt 0:00:58]} g5 {[%emt 0:07:46]} 16. Rc1 {[%emt 0:05:38]} Kh8 {[%emt 0:03:52]} 17. Bg2 {[%emt 0:07:42]} Rad8 {[%emt 0:06:20]} 18. Qe2 {[%emt 0:07:14]} e4 {[%emt 0:02:21]} 19. dxe4 {[%emt 0:02:00]} dxe4 {[%emt 0:00:38]} 20. Bd4 {[%emt 0:07:31]} Bb8 {[%emt 0:04:09]} 21. Rfd1 {[%emt 0:03:52]} b6 {[%emt 0:10:11]} 22. Qb5 {[%emt 0:04:40]} h6 {[%emt 0:05:30]} 23. Qf5 {[%emt 0:05:48]} Rde8 {[%emt 0:03:03]} 24. Rc4 {[%emt 0:06:28]} Ne5 {[%emt 0:10:40]} 25. Bxe5 {[%emt 0:01:10]} Qxe5 {[%emt 0:00:15]} 26. Qxe5 {[%emt 0:00:27]} Rxe5 {[%emt 0:00:22]} 27. Bxe4 {[%emt 0:02:37]} Rd8 {[%emt 0:00:48]} 28. Bf3 {[%emt 0:00:34]} Ree8 {[%emt 0:01:21]} 29. Nb1 {[%emt 0:04:07]} Rxd1+ {[%emt 0:00:35]} 30. Bxd1 {[%emt 0:00:13]} Bd6 {[%emt 0:00:33]} 31. Bc2 {[%emt 0:01:21]} Kg8 {[%emt 0:00:24]} 32. Nd2 {[%emt 0:01:10]} Kf8 {[%emt 0:00:17]} 33. Nf3 {[%emt 0:00:19]} Nd7 {[%emt 0:00:47]} 34. Nd4 {[%emt 0:03:53]} Ne5 {[%emt 0:01:41]} 35. Rc3 {[%emt 0:01:34]} Bc5 {[%emt 0:00:30]} 36. Kg2 {[%emt 0:03:16]} Kf7 {[%emt 0:03:18]} 37. Be4 {[%emt 0:01:41]} Rd8 {[%emt 0:01:05]} 38. Nc2 {[%emt 0:01:41]} a5 {[%emt 0:01:22]} 39. a3 {[%emt 0:00:32]} Rd2 {[%emt 0:01:09]} 40. Kf1 {[%emt 0:01:15]} Rd1+ {[%emt 0:01:48]} 41. Ke2 {[%emt 0:00:08]} Rb1 {[%emt 0:00:48]} 42. f4 {[%emt 0:01:20]} gxf4 {[%emt 0:00:46]} 43. exf4 {[%emt 0:00:20]} Nd7 {[%emt 0:00:44]} 44. Kd3 {[%emt 0:01:27]} Rf1 {[%emt 0:02:40]} 45. Bc6 {[%emt 0:02:31]} Ke7 {[%emt 0:01:08]} (45... Nf6 $14) 46. Bxd7 {[%emt 0:01:25]} (46. Ne3 $16 Bxe3 47. Kxe3) 46... Kxd7 {[%emt 0:00:23]} 47. Ke4 {[%emt 0:00:24]} Bd6 {[%emt 0:01:13]} 48. f5 {[%emt 0:00:22]} (48. Rf3 $1 $14 Rc1 49. Kd3) 48... Rf2 {[%emt 0:01:28]} (48... h5 $5) 49. a4 {[%emt 0:02:06]} Re2+ {[%emt 0:01:08]} ({Better is} 49... h5 $1 $14) 50. Kd3 {[%emt 0:01:03]} Rg2 {[%emt 0:00:15]} 51. Ke4 {[%emt 0:02:13]} Re2+ {[%emt 0:02:54]} 52. Ne3 {[%emt 0:00:35]} Bc5 {[%emt 0:00:51]} 53. Kf3 {[%emt 0:00:20]} Rh2 {[%emt 0:00:19]} 54. Kg3 {[%emt 0:01:23]} Bd6+ {[%emt 0:00:21]} 55. Kh4 {[%emt 0:00:39]} Be7+ {[%emt 0:00:45]} 56. Kg3 {[%emt 0:03:12]} Bd6+ {[%emt 0:00:08]} 57. Kf3 {[%emt 0:00:09]} Rxh3+ {[%emt 0:00:13]} 58. Ke4 {[%emt 0:00:21]} Bc5 {[%emt 0:02:05]} 59. Rd3+ {[%emt 0:00:39]} Kc6 {[%emt 0:00:32]} 60. Nc4 {[%emt 0:00:55]} Rxd3 {[%emt 0:01:02]} 61. Ne5+ {[%emt 0:00:09]} Kd6 {[%emt 0:00:19]} 62. Nxd3 $11 {[%emt 0:00:06]} Bg1 {[%emt 0:00:48]} 63. Nf4 {[%emt 0:00:37]} Ke7 {[%emt 0:00:50]} 64. Nd5+ {[%emt 0:00:27]} Kd6 {[%emt 0:00:20]} 65. Nf4 {[%emt 0:00:20]} Ke7 {[%emt 0:00:04]} 66. Nh5 {[%emt 0:00:22]} Kf7 {[%emt 0:00:05]} 67. Nf4 {[%emt 0:03:21]} 1/2-1/2

[Event "2017 South African Open Ch"]
[Site "Durban"]
[Date "2017.07.21"]
[Round "10"]
[White "Du Plessis, Heinco"]
[Black "Naidu, Sayen"]
[Result "0-1"]
[ECO "B23"]
[WhiteElo "2003"]
[BlackElo "1865"]
[Annotator "NA RC"]
[PlyCount "88"]
[EventDate "2017.??.??"]
[EventCountry "RSA"]
[SourceTitle "playchess.com"]
[Source "ChessBase"]
[SourceQuality "1"]
[TimeControl "5400+30"]

1. e4 {[%emt 0:00:00]} c5 {[%emt 0:00:35]} 2. Nc3 {[%emt 0:00:13]} d6 {[%emt 0:02:07]} 3. d4 {[%emt 0:02:35]} cxd4 {[%emt 0:00:21] B23: Closed Sicilian: Lines without g3} 4. Qxd4 {[%emt 0:00:01]} Nc6 {[%emt 0:16:41]} 5. Bb5 {[%emt 0:06:38]} Bd7 {[%emt 0:00:13]} 6. Bxc6 {[%emt 0:00:02]} bxc6 {[%emt 0:00:05]} (6... Bxc6 7. Nge2 Nf6 8. Bg5 e6 9. O-O-O Be7 10. Qd3 Qa5 11. Bd2 {½-½ (30) Zvjaginsev,V (2661)-Wang,H (2690) China 2017}) 7. Nf3 {[%emt 0:04:03]} e5 {[%emt 0:00:47]} 8. Qd3 {[%emt 0:01:21]} h6 {[%emt 0:00:25]} 9. O-O {[%emt 0:01:16]} Nf6 {[%emt 0:00:14]} 10. b3 {[%emt 0:10:59]} Be6 $146 {[%emt 0:03:58]} ({Predecessor:} 10... Be7 11. a4 O-O 12. Ba3 Bg4 13. Nd2 d5 14. Bxe7 Qxe7 15. exd5 cxd5 16. Nxd5 Nxd5 17. Qxd5 {½-½ (68) Milliet,S (2387)-Sudakova,I (2356) Warsaw 2013}) 11. Rd1 {[%emt 0:04:56]} Qc7 {[%emt 0:02:02]} 12. Bb2 {[%emt 0:02:25]} Be7 {[%emt 0:00:26]} 13. Na4 {[%emt 0:00:21]} O-O {[%emt 0:01:08]} 14. c4 {[%emt 0:00:07]} Nd7 {[%emt 0:02:19]} 15. Ba3 {[%emt 0:07:45]} c5 {[%emt 0:03:33]} 16. Nc3 {[%emt 0:00:54]} Nb6 {[%emt 0:02:06]} 17. Nd2 {[%emt 0:06:52]} a5 {[%emt 0:10:16]} 18. Nf1 {[%emt 0:07:16]} a4 {[%emt 0:04:06]} 19. Ne3 {[%emt 0:04:58]} axb3 {[%emt 0:01:23]} 20. axb3 {[%emt 0:00:10]} Ra6 {[%emt 0:03:28]} 21. Bb2 {[%emt 0:06:45]} Rxa1 {[%emt 0:06:44]} 22. Rxa1 {[%emt 0:00:10]} Qb7 {[%emt 0:02:08]} 23. Nb5 {[%emt 0:08:25]} Nc8 {[%emt 0:00:15]} 24. g3 {[%emt 0:03:14]} Bg5 {[%emt 0:07:47]} 25. Nf5 {[%emt 0:07:03]} Rd8 {[%emt 0:17:13]} 26. h4 {[%emt 0:01:54]} Bxf5 {[%emt 0:03:56]} 27. exf5 {[%emt 0:00:16]} Bf6 {[%emt 0:00:18]} 28. Qe2 {[%emt 0:04:34]} Qd7 {[%emt 0:02:33]} 29. Qh5 {[%emt 0:01:03]} d5 {[%emt 0:01:04]} 30. Rd1 {[%emt 0:01:32]} (30. Qg4 $15) 30... d4 {[%emt 0:02:30]} 31. Ba3 {[%emt 0:00:09]} Qc6 {[%emt 0:02:25]} 32. f3 {[%emt 0:03:00]} (32. Qe2 $17 {keeps fighting.}) 32... Ne7 {[%emt 0:00:59]} ({Black should try} 32... Nd6 $19 33. Nxd6 Qxd6) 33. Kf2 $2 {[%emt 0:02:21]} (33. Qg4 $17 {keeps fighting.}) 33... e4 $19 {[%emt 0:01:59]} 34. Qg4 {[%emt 0:02:38]} e3+ {[%emt 0:00:31]} 35. Ke2 {[%emt 0:00:16]} Qc8 {[%emt 0:00:26]} 36. Qh3 {[%emt 0:01:10]} Nxf5 {[%emt 0:00:15]} 37. Rd3 {[%emt 0:00:30]} g6 {[%emt 0:00:57]} 38. h5 {[%emt 0:00:18]} gxh5 {[%emt 0:00:36]} 39. g4 {[%emt 0:00:24]} Ng7 {[%emt 0:00:21]} 40. Qg2 {[%emt 0:00:34]} h4 {[%emt 0:00:09]} 41. Qh2 {[%emt 0:00:44]} Ne6 {[%emt 0:00:28]} 42. Rd1 {[%emt 0:00:21]} Bg5 {[%emt 0:00:14]} 43. Qe5 {[%emt 0:00:36]} Nf4+ 44. Ke1 h3 {[%emt 0:01:15]} 0-1

[Event "2017 South African Open Ch"]
[Site "Durban"]
[Date "2017.07.21"]
[Round "10"]
[White "Salimu, Reuben"]
[Black "Wilken, Justin Barend"]
[Result "1/2-1/2"]
[ECO "B40"]
[WhiteElo "1968"]
[BlackElo "1920"]
[Annotator "NA"]
[PlyCount "89"]
[EventDate "2017.??.??"]
[EventCountry "RSA"]
[SourceTitle "playchess.com"]
[Source "ChessBase"]
[SourceQuality "1"]
[TimeControl "5400+30"]

1. e4 {[%emt 0:00:00]} c5 {[%emt 0:01:06]} 2. Nf3 {[%emt 0:00:00]} e6 {[%emt 0:00:08]} 3. d4 {[%emt 0:00:00]} cxd4 {[%emt 0:00:04]} 4. Nxd4 {[%emt 0:00:02]} Nf6 {[%emt 0:00:31]} 5. Bd3 {[%emt 0:00:32]} Nc6 {[%emt 0:01:54]} 6. Nxc6 {[%emt 0:00:08]} bxc6 {[%emt 0:00:23]} 7. O-O {[%emt 0:01:09]} d5 {[%emt 0:01:00]} 8. e5 {[%emt 0:00:06]} Nd7 {[%emt 0:00:16]} 9. Bf4 {[%emt 0:02:14]} Qb6 {[%emt 0:01:04]} 10. Qe2 {[%emt 0:06:24]} Nc5 {[%emt 0:08:08]} 11. Bc1 {[%emt 0:01:35]} Nxd3 {[%emt 0:00:50]} 12. cxd3 {[%emt 0:00:08]} Ba6 {[%emt 0:02:49]} 13. Nc3 {[%emt 0:01:33]} Qd4 {[%emt 0:04:16]} 14. Rd1 {[%emt 0:04:22]} Be7 {[%emt 0:00:38]} 15. Kh1 {[%emt 0:00:32]} O-O {[%emt 0:02:24]} 16. Qe3 {[%emt 0:02:41]} Qxe3 {[%emt 0:08:04]} 17. Bxe3 {[%emt 0:00:26]} f6 {[%emt 0:04:55]} 18. exf6 {[%emt 0:01:06]} Bxf6 {[%emt 0:02:19]} 19. d4 {[%emt 0:00:48]} e5 {[%emt 0:03:22]} 20. dxe5 {[%emt 0:01:49]} Bxe5 {[%emt 0:00:02]} 21. Bc5 {[%emt 0:00:15]} Rf4 {[%emt 0:03:19]} 22. Rac1 {[%emt 0:01:28]} Rc4 {[%emt 0:14:45]} 23. Re1 {[%emt 0:06:07]} Bf4 {[%emt 0:09:24]} 24. Be3 {[%emt 0:00:09]} Rf8 {[%emt 0:07:47]} 25. Bxf4 {[%emt 0:02:26]} Rfxf4 {[%emt 0:01:17]} 26. b3 {[%emt 0:01:24]} Rb4 {[%emt 0:01:28]} 27. Re7 {[%emt 0:00:23]} Rxf2 {[%emt 0:00:41]} 28. Rxa7 {[%emt 0:00:46]} Rf1+ {[%emt 0:01:40]} 29. Rxf1 {[%emt 0:00:18]} Bxf1 {[%emt 0:00:01]} 30. Kg1 {[%emt 0:00:30]} Rf4 {[%emt 0:01:12]} 31. Rd7 {[%emt 0:01:03]} d4 {[%emt 0:01:07]} 32. Ne4 {[%emt 0:00:17]} Bd3 {[%emt 0:04:05]} 33. Nf2 {[%emt 0:02:07]} Bb1 {[%emt 0:00:12]} 34. g3 {[%emt 0:00:58]} Rf5 {[%emt 0:01:18]} 35. Rxd4 {[%emt 0:00:31]} Bxa2 {[%emt 0:00:10]} 36. b4 {[%emt 0:00:18]} Rb5 {[%emt 0:02:00]} 37. Nd3 {[%emt 0:00:16]} Rd5 {[%emt 0:01:17]} 38. Rxd5 {[%emt 0:00:25]} Bxd5 {[%emt 0:00:15]} 39. Kf2 {[%emt 0:00:08]} Kf7 {[%emt 0:00:28]} 40. Ke3 {[%emt 0:00:04]} Ke7 {[%emt 0:00:18]} 41. Kd4 {[%emt 0:00:14]} Kd6 {[%emt 0:00:28]} 42. Ne5 {[%emt 0:01:16]} Bg2 {[%emt 0:01:29]} 43. Nc4+ {[%emt 0:00:25]} Kc7 {[%emt 0:00:20]} 44. Kc5 {[%emt 0:00:12]} Kd7 45. Kd4 1/2-1/2

[Event "2017 South African Open Ch"]
[Site "Durban"]
[Date "2017.07.21"]
[Round "10"]
[White "Mpya, Tshediso M"]
[Black "Oberholzer, Francois"]
[Result "1-0"]
[ECO "A45"]
[WhiteElo "1897"]
[BlackElo "2046"]
[Annotator "NA"]
[PlyCount "107"]
[EventDate "2017.??.??"]
[EventCountry "RSA"]
[SourceTitle "playchess.com"]
[Source "ChessBase"]
[SourceQuality "1"]
[TimeControl "5400+30"]

1. d4 {[%emt 0:00:00]} Nf6 {[%emt 0:00:49]} 2. Bf4 {[%emt 0:00:00]} c5 {[%emt 0:05:56]} 3. e3 {[%emt 0:00:00]} e6 {[%emt 0:00:39]} 4. Nf3 {[%emt 0:00:03]} d5 {[%emt 0:00:44]} 5. Nc3 {[%emt 0:00:08]} a6 {[%emt 0:00:33]} 6. a3 {[%emt 0:00:30]} cxd4 {[%emt 0:04:31]} 7. exd4 {[%emt 0:00:03]} Bd6 {[%emt 0:00:13]} 8. Bxd6 {[%emt 0:01:22]} Qxd6 {[%emt 0:00:06]} 9. Bd3 {[%emt 0:00:08]} O-O {[%emt 0:01:15]} 10. O-O {[%emt 0:00:06]} Nc6 {[%emt 0:00:33]} 11. Re1 {[%emt 0:00:25]} Bd7 {[%emt 0:05:16]} 12. Qd2 {[%emt 0:05:59]} Rac8 {[%emt 0:15:29]} 13. Re3 {[%emt 0:01:49]} Ng4 {[%emt 0:03:48]} 14. Re2 {[%emt 0:00:21]} Nxd4 {[%emt 0:20:12]} 15. Bxh7+ {[%emt 0:00:11]} Kxh7 {[%emt 0:00:08]} 16. Qxd4 {[%emt 0:00:07]} Nh6 {[%emt 0:07:56]} 17. Ne4 {[%emt 0:02:06]} Qe7 {[%emt 0:01:10]} 18. Neg5+ {[%emt 0:02:12]} Kg8 {[%emt 0:00:53]} 19. Qxd5 {[%emt 0:04:11]} exd5 {[%emt 0:00:06]} 20. Rxe7 {[%emt 0:00:14]} Bg4 {[%emt 0:08:28]} 21. Nd4 {[%emt 0:02:07]} Nf5 {[%emt 0:01:28]} 22. Nxf5 {[%emt 0:00:09]} Bxf5 {[%emt 0:00:00]} 23. c3 {[%emt 0:00:13]} f6 {[%emt 0:07:24]} 24. Nf3 {[%emt 0:01:07]} Rf7 {[%emt 0:00:46]} 25. Rae1 {[%emt 0:00:11]} Be4 {[%emt 0:00:33]} 26. Rxf7 {[%emt 0:00:12]} Kxf7 {[%emt 0:00:01]} 27. Nd4 {[%emt 0:00:10]} a5 {[%emt 0:01:43]} 28. f3 {[%emt 0:00:30]} Bg6 {[%emt 0:01:26]} 29. Re6 {[%emt 0:00:15]} Bd3 {[%emt 0:00:53]} 30. Rd6 {[%emt 0:00:26]} Ke7 {[%emt 0:01:54]} 31. Rxd5 {[%emt 0:00:19]} b6 {[%emt 0:00:08]} 32. Nf5+ {[%emt 0:03:08]} Bxf5 {[%emt 0:01:52]} 33. Rxf5 {[%emt 0:00:02]} Rd8 {[%emt 0:00:25]} 34. Rb5 {[%emt 0:00:09]} Rd6 {[%emt 0:00:00]} 35. Kf2 {[%emt 0:00:29]} Kd7 {[%emt 0:00:01]} 36. Ke2 {[%emt 0:01:04]} Kc6 {[%emt 0:00:06]} 37. Rh5 {[%emt 0:00:10]} Re6+ {[%emt 0:00:14]} 38. Kd2 {[%emt 0:00:02]} Rd6+ {[%emt 0:00:08]} 39. Kc2 {[%emt 0:01:16]} Re6 {[%emt 0:00:07]} 40. g3 {[%emt 0:00:53]} Re2+ {[%emt 0:00:09]} 41. Kb3 {[%emt 0:00:06]} a4+ {[%emt 0:07:47]} 42. Ka2 {[%emt 0:00:12]} Rg2 {[%emt 0:00:40]} 43. Rh7 Kc5 {[%emt 0:00:11]} 44. Rxg7 {[%emt 0:01:53]} Rxh2 {[%emt 0:00:07]} 45. Rg6 {[%emt 0:00:53]} Rg2 {[%emt 0:00:06]} 46. g4 {[%emt 0:00:07]} f5 {[%emt 0:00:01]} 47. Rg5 {[%emt 0:00:19]} Kc4 {[%emt 0:00:02]} 48. Rxf5 {[%emt 0:00:28]} Kd3 {[%emt 0:00:10]} 49. g5 {[%emt 0:01:01]} Kc2 {[%emt 0:00:20]} 50. f4 {[%emt 0:00:24]} Kc1 {[%emt 0:00:16]} 51. Rb5 {[%emt 0:00:07]} Rg4 {[%emt 0:00:12]} 52. Rb4 {[%emt 0:00:55]} Rg2 {[%emt 0:00:33]} 53. Rxb6 {[%emt 0:00:15]} Rf2 {[%emt 0:00:16]} 54. Rb4 {[%emt 0:00:10]} 1-0

[Event "2017 South African Open Ch"]
[Site "Durban"]
[Date "2017.07.21"]
[Round "10"]
[White "Mazibuko, Khanya"]
[Black "Bhawoodien, Shabir Hussain"]
[Result "1/2-1/2"]
[ECO "C89"]
[WhiteElo "1808"]
[BlackElo "2066"]
[Annotator "NA"]
[PlyCount "91"]
[EventDate "2017.??.??"]
[EventCountry "RSA"]
[SourceTitle "playchess.com"]
[Source "ChessBase"]
[SourceQuality "1"]
[TimeControl "5400+30"]

1. e4 {[%emt 0:00:00]} e5 {[%emt 0:05:44]} 2. Nf3 {[%emt 0:00:10]} Nc6 {[%emt 0:00:17]} 3. Bb5 {[%emt 0:02:12]} a6 {[%emt 0:00:42]} 4. Ba4 {[%emt 0:00:02]} Nf6 {[%emt 0:00:06]} 5. O-O {[%emt 0:00:08]} Be7 {[%emt 0:00:19]} 6. Re1 {[%emt 0:00:26]} b5 {[%emt 0:00:09]} 7. Bb3 {[%emt 0:00:03]} O-O {[%emt 0:00:05]} 8. c3 {[%emt 0:00:03]} d5 {[%emt 0:02:11]} 9. exd5 {[%emt 0:00:15]} Nxd5 {[%emt 0:00:07]} 10. Nxe5 {[%emt 0:00:07]} Nxe5 {[%emt 0:00:09]} 11. Rxe5 {[%emt 0:00:05]} c6 {[%emt 0:03:07]} 12. d4 {[%emt 0:00:16]} Bd6 {[%emt 0:00:02]} 13. Re1 {[%emt 0:00:13]} Qh4 {[%emt 0:00:03]} 14. g3 {[%emt 0:00:11]} Qh3 {[%emt 0:00:16]} 15. Qe2 {[%emt 0:00:19]} Bg4 {[%emt 0:04:29]} 16. Qf1 {[%emt 0:00:07]} Qh5 {[%emt 0:01:34]} 17. Be3 {[%emt 0:00:55]} f5 {[%emt 0:01:19]} 18. f4 {[%emt 0:10:24]} Kh8 {[%emt 0:07:21]} 19. Nd2 {[%emt 0:01:52]} Nxe3 {[%emt 0:06:00]} 20. Rxe3 {[%emt 0:00:07]} g5 {[%emt 0:00:19]} 21. a4 {[%emt 0:07:54]} gxf4 {[%emt 0:07:25]} 22. gxf4 {[%emt 0:00:01]} Qh6 {[%emt 0:02:46]} 23. Re6 {[%emt 0:05:01]} Qxf4 {[%emt 0:02:22]} 24. Qxf4 {[%emt 0:02:11]} Bxf4 {[%emt 0:00:22]} 25. Nf1 {[%emt 0:00:32]} Rg8 {[%emt 0:14:13]} 26. Kf2 {[%emt 0:02:06]} Rgb8 {[%emt 0:12:22]} 27. a5 {[%emt 0:01:30]} b4 {[%emt 0:02:15]} 28. c4 {[%emt 0:00:15]} Rd8 {[%emt 0:02:17]} 29. d5 {[%emt 0:02:19]} cxd5 {[%emt 0:01:37]} 30. cxd5 {[%emt 0:00:02]} Bd6 {[%emt 0:01:25]} 31. Ne3 {[%emt 0:11:17]} Bc5 {[%emt 0:04:06]} 32. Kg3 {[%emt 0:00:48]} Bd6+ {[%emt 0:02:37]} 33. Kh4 {[%emt 0:04:33]} Bxh2 {[%emt 0:01:44]} 34. Rh1 {[%emt 0:01:23]} Bc7 {[%emt 0:04:49]} 35. Nxg4 {[%emt 0:01:14]} fxg4 {[%emt 0:00:02]} 36. Kxg4 {[%emt 0:05:15]} Rg8+ {[%emt 0:00:25]} 37. Kf5 {[%emt 0:00:17]} Raf8+ {[%emt 0:07:10]} 38. Rf6 {[%emt 0:00:15]} Rxf6+ {[%emt 0:00:59]} 39. Kxf6 {[%emt 0:00:01]} Rg3 {[%emt 0:00:23]} 40. Bc2 {[%emt 0:01:09]} Rf3+ {[%emt 0:00:28]} 41. Bf5 {[%emt 0:01:33]} Kg8 {[%emt 0:01:49]} 42. Ke6 {[%emt 0:05:42]} Re3+ {[%emt 0:00:36]} 43. Kd7 {[%emt 0:02:25]} Bxa5 {[%emt 0:00:05]} 44. Bxh7+ {[%emt 0:03:27]} Kg7 {[%emt 0:00:01]} 45. Bf5 {[%emt 0:00:51]} b3 {[%emt 0:02:46]} 46. Rh3 {[%emt 0:01:48]} 1/2-1/2